fUST/lending_fUST_20240621
["ID","MTS","AMOUNT","RATE_DAILY","PERIOD"]
[330025263,1718949044765,-4124.44,0.00054876,21]
[330025264,1718949044774,-1698.474679,0.00054876,120]
[330025266,1718949044783,-1698.474679,0.00054876,120]
[330025268,1718949044792,-1698.474679,0.00054876,120]
[330025269,1718949044802,-1698.474679,0.00054876,120]
[330025270,1718949044811,-1698.474679,0.00054876,120]
[330025271,1718949044820,-1698.474679,0.00054876,120]
[330025272,1718949044829,-500.0,0.00054876,120]
[330025273,1718949044838,-1873.22,0.00054876,120]
[330025274,1718949044851,-500.0,0.00054876,120]
[330025275,1718949044861,-395.50397672,0.00054876,120]
[330025276,1718949044870,-500.0,0.00054876,120]
[330025277,1718949044879,-500.0,0.00054876,120]
[330025278,1718949044888,-500.0,0.00054876,120]
[330025279,1718949044897,-500.0,0.00054876,120]
[330025280,1718949044907,-151.0,0.00054876,120]
[330025281,1718949044918,-151.0,0.00054876,120]
[330025282,1718949044927,-151.0,0.00054876,120]
[330025283,1718949044936,-738.27,0.00054876,120]
[330025284,1718949044947,-500.0,0.00054876,90]
[330025285,1718949044957,-500.0,0.00054876,120]
[330025286,1718949044967,-500.0,0.00054876,120]
[330025287,1718949044976,-504.49773037,0.00054876,120]
[330025288,1718949044986,-8117.38,0.00054876,120]
[330025289,1718949044996,-500.0,0.00054876,120]
[330025290,1718949045005,-877.44,0.00054876,120]
[330025291,1718949045015,-500.0,0.00054876,120]
[330025292,1718949045025,-500.0,0.00054876,120]
[330025293,1718949045034,-500.0,0.00054876,120]
[330025294,1718949045045,-579.92,0.00054876,120]
[330025295,1718949045054,-500.0,0.00054876,120]
[330025296,1718949045064,-22570.34,0.00054876,120]
[330025297,1718949045073,-1745.42,0.00054876,120]
[330025298,1718949045083,-522.28,0.00054876,120]
[330025299,1718949045093,-2356.49,0.00054876,120]
[330025300,1718949045102,-500.0,0.00054876,120]
[330025301,1718949045111,-2599.27,0.00054876,120]
[330025302,1718949045121,-503.32,0.00054876,120]
[330025303,1718949045131,-1122.22,0.00054876,120]
[330025304,1718949045140,-697.01,0.00054876,120]
[330025305,1718949045150,-500.0,0.00054876,120]
[330025306,1718949045159,-1270.31,0.00054876,120]
[330025307,1718949045169,-1526.35,0.00054876,120]
[330025308,1718949045179,-151.0,0.00054876,120]
[330025309,1718949045188,-151.0,0.00054876,120]
[330025310,1718949045200,-503.47601432,0.00054876,120]
[330025311,1718949045210,-151.0,0.00054876,120]
[330025312,1718949045221,-606.96,0.00054876,120]
[330025313,1718949045232,-500.0,0.00054876,120]
[330025314,1718949045242,-151.0,0.00054876,120]
[330025315,1718949045252,-707.5,0.00054876,120]
[330025316,1718949045262,-151.0,0.00054876,120]
[330025317,1718949045272,-151.0,0.00054876,120]
[330025318,1718949045287,-500.0,0.00054876,120]
[330025319,1718949045296,-530.8,0.00054876,120]
[330025320,1718949045305,-500.0,0.00054876,120]
[330025321,1718949045317,-1000.0,0.00054876,14]
[330025322,1718949045328,-500.0,0.00054876,120]
[330025323,1718949045338,-1130.59,0.00054876,120]
[330025324,1718949045347,-7527.3,0.00054876,120]
[330025325,1718949045358,-1188.32,0.00054876,120]
[330025326,1718949045367,-516.29,0.00054876,120]
[330025327,1718949045376,-500.0,0.00054876,120]
[330025328,1718949045386,-500.0,0.00054876,120]
[330025329,1718949045396,-1880.26,0.00054876,120]
[330025330,1718949045405,-596.47640612,0.00054876,120]
[330025331,1718949045414,-1399.76,0.00054876,120]
[330025332,1718949045423,-500.0,0.00054876,120]
[330025333,1718949045433,-1736.81,0.00054876,120]
[330025334,1718949045442,-1296.61,0.00054876,120]
[330025335,1718949045452,-500.0,0.00054876,120]
[330025336,1718949045461,-500.0,0.00054876,2]
[330025337,1718949045470,-651.88,0.00054876,120]
[330025338,1718949045480,-611.83,0.00054876,120]
[330025339,1718949045489,-900.98,0.00054876,120]
[330025340,1718949045498,-793.17,0.00054876,120]
[330025341,1718949045508,-151.0,0.00054876,120]
[330025342,1718949045517,-155.276061,0.00054876,120]
[330025343,1718949045527,-151.0,0.00054876,120]
[330025344,1718949045536,-151.0,0.00054876,120]
[330025345,1718949045546,-151.0,0.00054876,120]
[330025346,1718949045556,-500.0,0.00054876,120]
[330025347,1718949045566,-692.65,0.00054876,120]
[330025348,1718949045575,-151.0,0.00054876,120]
[330025349,1718949045585,-2543.18,0.00054876,120]
[330025350,1718949045595,-151.0,0.00054876,120]
[330025351,1718949045604,-151.0,0.00054876,120]
[330025352,1718949045613,-244.633128,0.00054876,120]
[330025353,1718949045623,-500.0,0.00054876,120]
[330025354,1718949045632,-500.0,0.00054876,120]
[330025355,1718949045642,-3755.22,0.00054876,120]
[330025356,1718949045651,-602.28,0.00054876,120]
[330025357,1718949045660,-234.425487,0.00054876,120]
[330025358,1718949045670,-234.425487,0.00054876,120]
[330025359,1718949045679,-234.425487,0.00054876,120]
[330025360,1718949045688,-553.21,0.00054876,120]
[330025361,1718949045697,-632.89,0.00054876,2]
[330025362,1718949045707,-234.425487,0.00054876,120]
[330025363,1718949045716,-234.425487,0.00054876,120]
[330025364,1718949045726,-234.425487,0.00054876,120]
[330025365,1718949045807,-1963.46,0.00054876,120]
[330025366,1718949045816,-500.0,0.00054876,30]
[330025367,1718949045826,-500.0,0.00054876,120]
[330025368,1718949045835,-2192.76,0.00054898,120]
[330025369,1718949045846,-500.0,0.00054898,120]
[330025370,1718949045855,-221.642433,0.00054899,120]
[330025371,1718949045865,-221.642433,0.00054899,120]
[330025372,1718949045874,-345.313122,0.00054899,120]
[330025373,1718949045884,-345.313122,0.00054899,120]
[330025374,1718949045893,-2192.76,0.00054899,120]
[330025375,1718949045903,-2192.76,0.00054899,120]
[330025376,1718949045912,-676.15,0.00054899,120]
[330025377,1718949045922,-676.15,0.00054899,120]
[330025378,1718949045931,-500.0,0.00054899,120]
[330025379,1718949045940,-178.76748019,0.00054899,120]
[330025380,1718949045950,-2005.04993566,0.000549,86]
[330025381,1718949045959,-7318.05406602,0.000549,86]
[330025382,1718949046084,-1007.75042735,0.000549,86]
[330025383,1718949046097,-1752.50852202,0.000549,86]
[330025384,1718949046108,-2915.8559745,0.000549,86]
[330025385,1718949046120,-981.19493176,0.000549,86]
[330025386,1718949046388,-3179.4,0.00054794,120]
[330025387,1718949046398,-3179.4,0.00054794,120]
[330025388,1718949046408,-3179.4,0.00054794,120]
[330025389,1718949046417,-3179.4,0.00054794,120]
[330025390,1718949046427,-3179.4,0.00054794,120]
[330025391,1718949046437,-520.62,0.00054794,120]
[330025392,1718949046446,-3179.4,0.00054794,120]
[330025393,1718949046456,-520.62,0.00054794,120]
[330025394,1718949046466,-3179.4,0.00054794,120]
[330025395,1718949046475,-39679.16267333,0.000549,86]
[330025405,1718949047140,-636.5613204,0.00054784,3]
[330025413,1718949945121,-197.31490802,0.00020996,2]
[330025414,1718949945142,-20.24604724,0.00021096,2]
[330025415,1718950016484,10000.0,0.00026,60]
[330025416,1718950023549,10000.0,0.00026,60]
[330025417,1718950030143,-145.95395276,0.00021096,2]
[330025418,1718950030164,-20.69398924,0.00039591,2]
[330025419,1718950034362,-178.53400276,0.00039591,2]
[330025420,1718950034384,-143.53299104,0.00039849,2]
[330025421,1718950042084,-312.13189606,0.00039849,2]
[330025422,1718950042103,-166.647942,0.0004101,2]
[330025423,1718950042123,-2315.32861438,0.000489,4]
[330025424,1718950042143,-300.0,0.00052006,10]
[330025425,1718950042164,-153.0,0.00052007,30]
[330025426,1718950042319,-8851.18024236,0.00053,70]
[330025428,1718950183949,199.2279939,0.00041989,2]
[330025650,1718950239003,-1148.81975764,0.00053,70]
[330025653,1718950239016,-1170.90057737,0.000535,70]
[330025655,1718950239031,-603.12900096,0.000535,70]
[330025656,1718950239444,-8225.97042167,0.000535,70]
[330025657,1718950239454,-565.97,0.00053799,30]
[330025658,1718950239464,-10252.23,0.000538,65]
[330025659,1718950239475,-950.62311218,0.000539,28]
[330025660,1718950239485,-10000.0,0.00054,80]
[330025661,1718950239495,-2700.0,0.00054,5]
[330025662,1718950239506,-10000.0,0.000542,90]
[330025663,1718950239517,-500.0,0.00054246,120]
[330025664,1718950239527,-8258.195999,0.000543,120]
[330025665,1718950239536,-10000.0,0.000543,75]
[330025666,1718950239546,-158.39493469,0.00054327,4]
[330025667,1718950239556,-10000.0,0.000545,85]
[330025668,1718950239566,-629.14,0.0005451,3]
[330025669,1718950239575,-524.29,0.0005451,3]
[330025670,1718950239586,-436.9,0.0005451,3]
[330025671,1718950239595,-155.09263507,0.00054519,4]
[330025672,1718950239605,-155.14201197,0.00054519,4]
[330025673,1718950239615,-428.46746537,0.0005452,120]
[330025674,1718950239626,-500.0,0.0005452,120]
[330025675,1718950239635,-500.0,0.0005452,120]
[330025676,1718950239645,-162.03510453,0.0005452,120]
[330025677,1718950239655,-500.0,0.0005452,120]
[330025678,1718950239664,-500.0,0.0005452,120]
[330025679,1718950239674,-798.33,0.0005452,120]
[330025680,1718950239689,-534.01706836,0.0005452,120]
[330025681,1718950239699,-500.0,0.0005452,120]
[330025682,1718950239708,-514.26,0.0005452,120]
[330025683,1718950239719,-500.0,0.0005452,120]
[330025684,1718950239730,-500.0,0.0005452,120]
[330025685,1718950239740,-500.0,0.0005452,120]
[330025686,1718950239750,-500.0,0.0005452,120]
[330025687,1718950239761,-1069.71,0.0005452,120]
[330025688,1718950239771,-643.47,0.0005452,120]
[330025689,1718950239781,-520.88,0.0005452,120]
[330025690,1718950239792,-500.0,0.0005452,120]
[330025691,1718950239802,-575.92704871,0.0005452,120]
[330025692,1718950239811,-500.0,0.0005452,120]
[330025693,1718950239822,-500.0,0.0005452,120]
[330025694,1718950239832,-555.76,0.0005452,120]
[330025695,1718950239842,-1075.46,0.0005452,120]
[330025696,1718950239852,-882.55,0.0005452,120]
[330025697,1718950239862,-868.31,0.0005452,120]
[330025698,1718950239871,-500.0,0.0005452,120]
[330025699,1718950239881,-503.47601432,0.0005452,120]
[330025700,1718950239891,-500.0,0.0005452,120]
[330025701,1718950239900,-182.28835771,0.0005452,120]
[330025702,1718950239910,-500.0,0.0005452,120]
[330025703,1718950239920,-500.0,0.0005452,120]
[330025704,1718950239929,-643.24,0.0005452,120]
[330025705,1718950239940,-596.47640612,0.0005452,120]
[330025706,1718950239950,-500.0,0.0005452,120]
[330025707,1718950239959,-500.0,0.0005452,120]
[330025708,1718950239969,-1735.92,0.0005452,120]
[330025709,1718950239979,-2037.13,0.0005452,120]
[330025710,1718950239988,-500.0,0.0005452,120]
[330025711,1718950239998,-500.0,0.0005452,120]
[330025712,1718950240007,-500.0,0.0005452,120]
[330025713,1718950240017,-500.0,0.0005452,2]
[330025714,1718950240027,-500.0,0.0005452,120]
[330025715,1718950240036,-815.84,0.0005452,120]
[330025716,1718950240046,-500.0,0.0005452,120]
[330025717,1718950240055,-1242.59,0.0005452,120]
[330025718,1718950240064,-500.0,0.0005452,120]
[330025719,1718950240074,-500.0,0.0005452,120]
[330025720,1718950240087,-500.0,0.0005452,120]
[330025721,1718950240096,-500.0,0.0005452,120]
[330025722,1718950240106,-1196.62,0.0005452,120]
[330025723,1718950240115,-504.12202885,0.0005452,120]
[330025724,1718950240125,-500.0,0.0005452,120]
[330025725,1718950240134,-500.0,0.0005452,120]
[330025726,1718950240144,-500.0,0.0005452,120]
[330025727,1718950240153,-500.0,0.0005452,120]
[330025728,1718950240163,-500.0,0.0005452,120]
[330025729,1718950240173,-500.0,0.0005452,120]
[330025730,1718950240183,-650.66,0.0005452,120]
[330025731,1718950240192,-500.0,0.0005452,120]
[330025732,1718950240202,-500.0,0.0005452,7]
[330025733,1718950240212,-577.19,0.0005452,120]
[330025734,1718950240222,-500.0,0.0005452,120]
[330025735,1718950240232,-500.0,0.0005452,120]
[330025736,1718950240241,-2099.75,0.0005452,120]
[330025737,1718950240251,-500.0,0.0005452,120]
[330025738,1718950240260,-500.0,0.0005452,120]
[330025739,1718950240270,-500.0,0.0005452,120]
[330025740,1718950240280,-500.0,0.0005452,120]
[330025741,1718950240289,-955.66,0.0005452,120]
[330025742,1718950240299,-500.0,0.0005452,120]
[330025743,1718950240309,-2000.0,0.0005452,5]
[330025744,1718950240319,-633.94333589,0.0005452,120]
[330025745,1718950240328,-552.75884604,0.0005452,120]
[330025746,1718950240339,-500.0,0.0005452,120]
[330025747,1718950240349,-500.0,0.0005452,120]
[330025748,1718950240358,-500.0,0.0005452,120]
[330025749,1718950240368,-500.0,0.0005452,60]
[330025750,1718950240378,-500.0,0.0005452,120]
[330025751,1718950240388,-782.07,0.0005452,120]
[330025752,1718950240397,-500.0,0.0005452,120]
[330025753,1718950240407,-500.0,0.0005452,120]
[330025754,1718950240417,-500.0,0.0005452,120]
[330025755,1718950240427,-500.0,0.0005452,120]
[330025756,1718950240437,-1285.89,0.0005452,120]
[330025757,1718950240446,-500.0,0.0005452,120]
[330025758,1718950240455,-36536.54,0.0005452,120]
[330025759,1718950240465,-1557.74,0.0005452,120]
[330025760,1718950240475,-500.0,0.0005452,120]
[330025761,1718950240484,-540.78,0.0005452,120]
[330025762,1718950240493,-512.99022469,0.0005452,120]
[330025763,1718950240503,-500.0,0.0005452,2]
[330025764,1718950240513,-1795.17,0.0005452,120]
[330025765,1718950240523,-13447.47,0.0005452,120]
[330025766,1718950240532,-504.88,0.0005452,120]
[330025768,1718950240542,-500.0,0.0005452,120]
[330025769,1718950240551,-500.0,0.0005452,120]
[330025770,1718950240560,-500.0,0.0005452,120]
[330025771,1718950240570,-3952.59,0.0005452,21]
[330025772,1718950240580,-500.0,0.0005452,120]
[330025773,1718950240589,-500.0,0.0005452,120]
[330025774,1718950240599,-500.0,0.0005452,120]
[330025775,1718950240609,-963.32,0.0005452,120]
[330025776,1718950240619,-395.50397672,0.0005452,120]
[330025777,1718950240628,-508.20344403,0.0005452,120]
[330025778,1718950240638,-500.0,0.0005452,120]
[330025779,1718950240648,-1437.15,0.0005452,120]
[330025780,1718950240658,-500.0,0.0005452,120]
[330025781,1718950240668,-502.91498116,0.0005452,120]
[330025782,1718950240682,-1071.6,0.0005452,120]
[330025783,1718950240692,-7779.15,0.0005452,120]
[330025784,1718950240703,-1672.7,0.0005452,120]
[330025785,1718950240713,-500.0,0.0005452,120]
[330025786,1718950240725,-500.0,0.0005452,120]
[330025787,1718950240735,-539.73,0.0005452,120]
[330025788,1718950240745,-500.0,0.0005452,7]
[330025789,1718950240755,-21629.91,0.0005452,120]
[330025790,1718950240765,-500.0,0.0005452,120]
[330025791,1718950240774,-346.75449246,0.0005452,120]
[330025792,1718950240784,-500.0,0.0005452,120]
[330025794,1718950240794,-504.49773037,0.0005452,120]
[330025796,1718950240803,-206.70628189,0.0005452,120]
[330025798,1718950240814,-500.52,0.0005452,120]
[330025799,1718950240826,-500.0,0.0005452,120]
[330025800,1718950240836,-524.54766491,0.0005452,120]
[330025801,1718950240847,-678.02,0.0005452,120]
[330025802,1718950240857,-500.0,0.0005452,120]
[330025803,1718950240867,-500.0,0.0005452,120]
[330025804,1718950240877,-707.51,0.0005452,120]
[330025805,1718950240887,-502.10428107,0.0005452,120]
[330025806,1718950240897,-502.67256663,0.0005452,120]
[330025807,1718950240907,-2490.97,0.0005452,120]
[330025808,1718950240917,-500.0,0.0005452,120]
[330025809,1718950240927,-500.0,0.0005452,120]
[330025810,1718950240938,-500.0,0.0005452,120]
[330025811,1718950240948,-500.0,0.0005452,120]
[330025812,1718950240957,-500.0,0.0005452,120]
[330025813,1718950240967,-500.0,0.0005452,120]
[330025814,1718950240977,-1217.38,0.0005452,120]
[330025815,1718950240986,-1462.75,0.0005452,120]
[330025816,1718950240996,-500.0,0.0005452,120]
[330025817,1718950241006,-2258.3,0.0005452,120]
[330025818,1718950241016,-500.0,0.0005452,120]
[330025819,1718950241026,-528.60984917,0.0005452,120]
[330025820,1718950241036,-500.0,0.0005452,120]
[330025821,1718950241045,-500.0,0.0005452,120]
[330025822,1718950241055,-500.0,0.0005452,120]
[330025823,1718950241064,-500.0,0.0005452,120]
[330025825,1718950241162,-500.0,0.0005452,120]
[330025826,1718950241173,-1138.8,0.0005452,120]
[330025827,1718950241182,-500.0,0.0005452,120]
[330025828,1718950241192,-581.67,0.0005452,120]
[330025829,1718950241203,-1801.92,0.0005452,120]
[330025830,1718950241213,-500.0,0.0005452,120]
[330025831,1718950241224,-7213.67,0.0005452,120]
[330025832,1718950241234,-663.79,0.0005452,120]
[330025833,1718950241245,-500.0,0.0005452,120]
[330025835,1718950241255,-500.0,0.0005452,120]
[330025836,1718950241265,-500.0,0.0005452,120]
[330025838,1718950241275,-500.0,0.0005452,120]
[330025839,1718950241286,-500.0,0.0005452,120]
[330025840,1718950241296,-500.0,0.0005452,120]
[330025841,1718950241306,-556.78,0.0005452,120]
[330025842,1718950241315,-500.0,0.0005452,120]
[330025843,1718950241325,-1341.44,0.0005452,120]
[330025844,1718950241335,-502.01160059,0.0005452,120]
[330025845,1718950241345,-501.04851248,0.0005452,120]
[330025846,1718950241355,-1664.44,0.0005452,120]
[330025847,1718950241365,-500.0,0.0005452,120]
[330025848,1718950241374,-911.48,0.0005452,120]
[330025849,1718950241384,-500.0,0.0005452,120]
[330025850,1718950241393,-624.72,0.0005452,120]
[330025851,1718950241402,-2119.6,0.0005452,120]
[330025852,1718950241422,-2437.22,0.0005452,120]
[330025853,1718950241434,-500.0,0.0005452,120]
[330025854,1718950241445,-1732.52,0.0005452,120]
[330025855,1718950241455,-500.0,0.0005452,120]
[330025856,1718950241465,-504.99906751,0.0005452,120]
[330025857,1718950241475,-760.13,0.0005452,120]
[330025858,1718950241484,-500.0,0.0005452,120]
[330025859,1718950241494,-504.73277846,0.0005452,120]
[330025860,1718950241505,-500.0,0.0005452,120]
[330025861,1718950241516,-500.0,0.0005452,120]
[330025862,1718950241526,-500.0,0.0005452,120]
[330025863,1718950241536,-2769.97,0.0005452,120]
[330025864,1718950241546,-2769.97,0.0005452,120]
[330025865,1718950241556,-2769.97,0.0005452,120]
[330025866,1718950241566,-2769.97,0.0005452,120]
[330025867,1718950241576,-2769.97,0.0005452,120]
[330025868,1718950241585,-500.0,0.0005452,120]
[330025869,1718950241595,-500.0,0.0005452,120]
[330025870,1718950241605,-508.68,0.0005452,120]
[330025871,1718950241615,-544.65,0.0005452,120]
[330025872,1718950241625,-500.0,0.0005452,120]
[330025873,1718950241635,-5586.47,0.0005452,120]
[330025874,1718950241645,-1881.65,0.0005452,120]
[330025875,1718950241655,-3157.88118872,0.000546,120]
[330025876,1718950241665,-2769.97,0.00054601,120]
[330025877,1718950241676,-2769.97,0.00054601,120]
[330025878,1718950241691,-2769.97,0.00054601,120]
[330025879,1718950241701,-500.0,0.00054602,120]
[330025880,1718950241711,-500.0,0.00054602,120]
[330025881,1718950241721,-798.33,0.00054602,120]
[330025882,1718950241731,-500.0,0.00054602,120]
[330025883,1718950241742,-514.26,0.00054602,120]
[330025884,1718950241751,-643.82124175,0.00054602,120]
[330025885,1718950241762,-500.0,0.00054602,120]
[330025886,1718950241773,-1069.71,0.00054602,120]
[330025887,1718950241783,-643.47,0.00054602,120]
[330025888,1718950241793,-520.88,0.00054602,120]
[330025889,1718950241803,-500.0,0.00054602,120]
[330025890,1718950241814,-500.0,0.00054602,120]
[330025891,1718950241824,-555.76,0.00054602,120]
[330025892,1718950241834,-1075.46,0.00054602,120]
[330025893,1718950241844,-882.55,0.00054602,120]
[330025894,1718950241854,-868.31,0.00054602,120]
[330025895,1718950241863,-500.0,0.00054602,120]
[330025896,1718950241873,-645.87,0.00054602,120]
[330025897,1718950241883,-643.24,0.00054602,120]
[330025898,1718950241893,-500.0,0.00054602,120]
[330025899,1718950241903,-1735.92,0.00054602,120]
[330025900,1718950241912,-2037.13,0.00054602,120]
[330025901,1718950241923,-500.0,0.00054602,120]
[330025902,1718950241933,-500.0,0.00054602,120]
[330025903,1718950241944,-500.0,0.00054602,120]
[330025904,1718950241954,-500.0,0.00054602,120]
[330025905,1718950241964,-815.84,0.00054602,120]
[330025906,1718950241974,-500.0,0.00054602,120]
[330025907,1718950241983,-1242.59,0.00054602,120]
[330025908,1718950241993,-500.0,0.00054602,120]
[330025909,1718950242003,-500.0,0.00054602,120]
[330025910,1718950242012,-500.0,0.00054602,120]
[330025911,1718950242022,-500.0,0.00054602,120]
[330025912,1718950242032,-1196.62,0.00054602,120]
[330025913,1718950242041,-500.0,0.00054602,120]
[330025914,1718950242051,-500.0,0.00054602,120]
[330025915,1718950242060,-512.73563061,0.00054602,120]
[330025916,1718950242070,-500.0,0.00054602,120]
[330025917,1718950242080,-500.0,0.00054602,120]
[330025918,1718950242089,-650.66,0.00054602,120]
[330025919,1718950242099,-500.0,0.00054602,120]
[330025920,1718950242109,-500.0,0.00054602,7]
[330025921,1718950242118,-577.19,0.00054602,120]
[330025922,1718950242128,-500.0,0.00054602,120]
[330025923,1718950242138,-2099.75,0.00054602,120]
[330025924,1718950242148,-533.73860227,0.00054602,120]
[330025925,1718950242157,-955.66,0.00054602,120]
[330025926,1718950242167,-2000.0,0.00054602,5]
[330025927,1718950242177,-500.0,0.00054602,120]
[330025928,1718950242186,-500.0,0.00054602,120]
[330025929,1718950242196,-500.0,0.00054602,60]
[330025930,1718950242205,-500.0,0.00054602,120]
[330025931,1718950242215,-782.07,0.00054602,120]
[330025932,1718950242225,-500.0,0.00054602,120]
[330025933,1718950242234,-1285.89,0.00054602,120]
[330025934,1718950242243,-500.0,0.00054602,120]
[330025935,1718950242252,-36536.54,0.00054602,120]
[330025936,1718950242261,-1557.74,0.00054602,120]
[330025937,1718950242270,-500.0,0.00054602,120]
[330025938,1718950242279,-540.78,0.00054602,120]
[330025939,1718950242288,-500.0,0.00054602,2]
[330025940,1718950242298,-1795.17,0.00054602,120]
[330025941,1718950242308,-13447.47,0.00054602,120]
[330025942,1718950242317,-504.88,0.00054602,120]
[330025943,1718950242326,-500.0,0.00054602,120]
[330025944,1718950242335,-503.75126241,0.00054602,120]
[330025945,1718950242345,-500.0,0.00054602,120]
[330025946,1718950242354,-3952.59,0.00054602,21]
[330025947,1718950242363,-500.0,0.00054602,120]
[330025948,1718950242373,-500.0,0.00054602,120]
[330025949,1718950242383,-963.32,0.00054602,120]
[330025950,1718950242393,-500.0,0.00054602,120]
[330025951,1718950242404,-1437.15,0.00054602,120]
[330025952,1718950242415,-1071.6,0.00054602,120]
[330025953,1718950242426,-7779.15,0.00054602,120]
[330025954,1718950242435,-1672.7,0.00054602,120]
[330025955,1718950242447,-500.0,0.00054602,120]
[330025956,1718950242457,-500.0,0.00054602,120]
[330025957,1718950242467,-539.73,0.00054602,120]
[330025958,1718950242480,-504.46054982,0.00054602,7]
[330025959,1718950242490,-21629.91,0.00054602,120]
[330025960,1718950242500,-396.45864905,0.00054602,120]
[330025961,1718950242510,-500.0,0.00054602,120]
[330025962,1718950242519,-500.52,0.00054602,120]
[330025963,1718950242529,-597.13044456,0.00054602,120]
[330025964,1718950242539,-678.02,0.00054602,120]
[330025965,1718950242548,-500.0,0.00054602,120]
[330025966,1718950242558,-500.0,0.00054602,120]
[330025967,1718950242567,-707.51,0.00054602,120]
[330025968,1718950242576,-2490.97,0.00054602,120]
[330025969,1718950242586,-500.0,0.00054602,120]
[330025970,1718950242596,-500.0,0.00054602,120]
[330025971,1718950242606,-500.0,0.00054602,120]
[330025972,1718950242615,-500.0,0.00054602,120]
[330025973,1718950242625,-1217.38,0.00054602,120]
[330025974,1718950242635,-1462.75,0.00054602,120]
[330025975,1718950242644,-500.0,0.00054602,120]
[330025976,1718950242654,-2258.3,0.00054602,120]
[330025977,1718950242664,-504.62581708,0.00054602,120]
[330025978,1718950242676,-500.0,0.00054602,120]
[330025979,1718950242695,-500.0,0.00054602,120]
[330025980,1718950242705,-500.0,0.00054602,120]
[330025981,1718950242714,-1138.8,0.00054602,120]
[330025982,1718950242726,-500.0,0.00054602,120]
[330025983,1718950242735,-581.67,0.00054602,120]
[330025984,1718950242745,-1801.92,0.00054602,120]
[330025985,1718950242756,-500.0,0.00054602,120]
[330025986,1718950242766,-7213.67,0.00054602,120]
[330025987,1718950242776,-663.79,0.00054602,120]
[330025988,1718950242785,-500.0,0.00054602,120]
[330025989,1718950242795,-500.0,0.00054602,120]
[330025990,1718950242805,-556.78,0.00054602,120]
[330025991,1718950242815,-500.0,0.00054602,120]
[330025992,1718950242826,-1341.44,0.00054602,120]
[330025993,1718950242835,-1664.44,0.00054602,120]
[330025994,1718950242845,-500.0,0.00054602,120]
[330025995,1718950242855,-911.48,0.00054602,120]
[330025996,1718950242865,-500.0,0.00054602,120]
[330025997,1718950242875,-624.72,0.00054602,120]
[330025998,1718950242886,-2437.22,0.00054602,120]
[330025999,1718950242896,-500.0,0.00054602,120]
[330026000,1718950242905,-1732.52,0.00054602,120]
[330026001,1718950242914,-760.13,0.00054602,120]
[330026002,1718950242924,-500.0,0.00054602,120]
[330026003,1718950242933,-500.0,0.00054602,120]
[330026004,1718950242944,-508.68,0.00054602,120]
[330026005,1718950242954,-544.65,0.00054602,120]
[330026006,1718950243049,-5586.47,0.00054602,120]
[330026007,1718950243059,-478.43226474,0.00054602,120]
[330026008,1718950243137,-1403.21773526,0.00054602,120]
[330026009,1718950243147,-687.92234121,0.00054683,120]
[330026010,1718950243158,-1983.10996916,0.00054683,120]
[330026011,1718950243170,-98.93768963,0.00054683,120]
[330026012,1718950243179,-2769.97,0.00054683,120]